[Event "*** Titled Tuesday Blitz"]
[Site "Chess.com"]
[Date "2020.02.04"]
[Round "8"]
[White "Quiet_Desperation"]
[Black "MikeSailer"]
[Result "1/2-1/2"]
[WhiteElo "2424"]
[BlackElo "2124"]
[TimeControl "180+2"]
[EndTime "10:59:07 PST"]
[Termination "Game drawn - insufficient material"]

1. e4 {[%clk 0:03:01.9]} 1... d5 {[%clk 0:03:00.1]} 2. exd5 {[%clk 0:03:01.9]}
2... Qxd5 {[%clk 0:03:00.4]} 3. Nc3 {[%clk 0:03:03.3]} 3... Qd6 {[%clk
0:03:01.3]} 4. Nf3 {[%clk 0:03:04.5]} 4... Nf6 {[%clk 0:03:02.6]} 5. Be2 {[%clk
0:03:05.6]} 5... c6 {[%clk 0:03:03.8]} 6. O-O {[%clk 0:03:06.9]} 6... Bg4 {[%clk
0:03:04.7]} 7. h3 {[%clk 0:03:07.7]} 7... Bh5 {[%clk 0:03:04.1]} 8. d4 {[%clk
0:03:08.2]} 8... e6 {[%clk 0:03:05.2]} 9. Ne5 {[%clk 0:03:08.1]} 9... Bxe2
{[%clk 0:03:04.9]} 10. Qxe2 {[%clk 0:03:10]} 10... Be7 {[%clk 0:03:02.5]} 11.
Rd1 {[%clk 0:03:10]} 11... O-O {[%clk 0:03:02.7]} 12. Bf4 {[%clk 0:03:11.1]}
12... Qd8 {[%clk 0:03:02.1]} 13. Rd3 {[%clk 0:03:02.7]} 13... Nd5 {[%clk
0:02:54.1]} 14. Nxd5 {[%clk 0:03:00.8]} 14... exd5 {[%clk 0:02:48.6]} 15. Re1
{[%clk 0:03:00.6]} 15... Bg5 {[%clk 0:02:22]} 16. Bh2 {[%clk 0:02:46]} 16... Nd7
{[%clk 0:02:19.3]} 17. Qg4 {[%clk 0:02:42.3]} 17... Nxe5 {[%clk 0:02:11.3]} 18.
dxe5 {[%clk 0:02:37.7]} 18... Re8 {[%clk 0:02:00]} 19. f4 {[%clk 0:02:27.1]}
19... Bh6 {[%clk 0:01:38.3]} 20. Qh5 {[%clk 0:02:12.9]} 20... Qb6+ {[%clk
0:01:20.2]} 21. Kh1 {[%clk 0:02:11.8]} 21... Qxb2 {[%clk 0:01:14.3]} 22. g4
{[%clk 0:01:30.1]} 22... Qxc2 {[%clk 0:01:10.7]} 23. Rdd1 {[%clk 0:01:19.2]}
23... Rad8 {[%clk 0:00:32.5]} 24. g5 {[%clk 0:01:06.7]} 24... Bxg5 {[%clk
0:00:27.2]} 25. Qxg5 {[%clk 0:01:06.1]} 25... h6 {[%clk 0:00:19.8]} 26. Qg3
{[%clk 0:01:01.5]} 26... d4 {[%clk 0:00:16.4]} 27. f5 {[%clk 0:01:01]} 27...
Qxf5 {[%clk 0:00:15.4]} 28. Rg1 {[%clk 0:00:51.2]} 28... Qe4+ {[%clk 0:00:16.2]}
29. Rg2 {[%clk 0:00:52.1]} 29... g6 {[%clk 0:00:16.6]} 30. Re1 {[%clk
0:00:43.7]} 30... Qf5 {[%clk 0:00:14.9]} 31. Rf2 {[%clk 0:00:42.1]} 31... Qe6
{[%clk 0:00:16.2]} 32. Rf6 {[%clk 0:00:41.6]} 32... Qd5+ {[%clk 0:00:17.5]} 33.
Kg1 {[%clk 0:00:41.1]} 33... Re6 {[%clk 0:00:14.5]} 34. Rxe6 {[%clk 0:00:35.8]}
34... Qxe6 {[%clk 0:00:13.9]} 35. Qh4 {[%clk 0:00:36.9]} 35... Rd5 {[%clk
0:00:11.2]} 36. Qxh6 {[%clk 0:00:37]} 36... d3 {[%clk 0:00:11.8]} 37. Bf4 {[%clk
0:00:30.4]} 37... Qf5 {[%clk 0:00:09.7]} 38. Qg5 {[%clk 0:00:28.6]} 38... d2
{[%clk 0:00:08.2]} 39. Rd1 {[%clk 0:00:27.5]} 39... Qxh3 {[%clk 0:00:07.3]} 40.
Rxd2 {[%clk 0:00:17.5]} 40... Rxd2 {[%clk 0:00:07.4]} 41. Bxd2 {[%clk
0:00:18.7]} 41... Qe6 {[%clk 0:00:07.3]} 42. Qd8+ {[%clk 0:00:16.6]} 42... Kg7
{[%clk 0:00:08.5]} 43. Be3 {[%clk 0:00:15.4]} 43... Qxa2 {[%clk 0:00:07.6]} 44.
Qf6+ {[%clk 0:00:14.9]} 44... Kg8 {[%clk 0:00:07.8]} 45. Bh6 {[%clk 0:00:15.8]}
45... Qb1+ {[%clk 0:00:07.6]} 46. Kh2 {[%clk 0:00:16.2]} 46... Qc2+ {[%clk
0:00:08.3]} 47. Kg3 {[%clk 0:00:16.8]} 47... Qd3+ {[%clk 0:00:08.9]} 48. Kh2
{[%clk 0:00:17.6]} 48... Qe2+ {[%clk 0:00:09.5]} 49. Kg3 {[%clk 0:00:17.7]}
49... Qe1+ {[%clk 0:00:09.8]} 50. Kg2 {[%clk 0:00:18.4]} 50... Qe4+ {[%clk
0:00:09.6]} 51. Kg1 {[%clk 0:00:18.1]} 51... Qg4+ {[%clk 0:00:10.3]} 52. Kf2
{[%clk 0:00:17.4]} 52... Qf5+ {[%clk 0:00:09.5]} 53. Qxf5 {[%clk 0:00:18.4]}
53... gxf5 {[%clk 0:00:10.9]} 54. Be3 {[%clk 0:00:19]} 54... b6 {[%clk
0:00:09.8]} 55. Kg3 {[%clk 0:00:19.7]} 55... Kf8 {[%clk 0:00:11.3]} 56. Kf4
{[%clk 0:00:20.9]} 56... Ke7 {[%clk 0:00:12.8]} 57. Kxf5 {[%clk 0:00:22.4]}
57... c5 {[%clk 0:00:13.7]} 58. Ke4 {[%clk 0:00:23.4]} 58... Ke6 {[%clk
0:00:14.8]} 59. Bg5 {[%clk 0:00:23.4]} 59... b5 {[%clk 0:00:14.8]} 60. Bf6
{[%clk 0:00:22.2]} 60... a5 {[%clk 0:00:14.4]} 61. Kd3 {[%clk 0:00:23]} 61...
Kd5 {[%clk 0:00:13.8]} 62. Kc3 {[%clk 0:00:23.9]} 62... a4 {[%clk 0:00:14]} 63.
Kb2 {[%clk 0:00:22.3]} 63... b4 {[%clk 0:00:12.8]} 64. Be7 {[%clk 0:00:20.1]}
64... Kc4 {[%clk 0:00:06.1]} 65. Bd6 {[%clk 0:00:18.8]} 65... a3+ {[%clk
0:00:04.1]} 66. Ka2 {[%clk 0:00:19.6]} 66... Kc3 {[%clk 0:00:03.3]} 67. Bxc5
{[%clk 0:00:20.4]} 67... b3+ {[%clk 0:00:04.8]} 68. Kxa3 {[%clk 0:00:16.4]}
68... Kc4 {[%clk 0:00:06.3]} 69. Bd6 {[%clk 0:00:14.4]} 69... Kd5 {[%clk
0:00:07.5]} 70. Bb8 {[%clk 0:00:12.8]} 70... Ke6 {[%clk 0:00:06.5]} 71. Kxb3
{[%clk 0:00:10.6]} 71... f6 {[%clk 0:00:07.9]} 72. exf6 {[%clk 0:00:11.7]} 72...
Kxf6 {[%clk 0:00:09.2]} 1/2-1/2

[Event "*** Titled Tuesday Blitz"]
[Site "Chess.com"]
[Date "2020.02.04"]
[Round "8"]
[White "dabee"]
[Black "AlexanderKing"]
[Result "0-1"]
[WhiteElo "2570"]
[BlackElo "2520"]
[TimeControl "180+2"]
[EndTime "10:59:40 PST"]
[Termination "AlexanderKing won on time"]

1. d4 {[%clk 0:03:01.9]} 1... d5 {[%clk 0:03:00.2]} 2. Bf4 {[%clk 0:03:01.1]}
2... Nf6 {[%clk 0:03:01.1]} 3. e3 {[%clk 0:02:59]} 3... e6 {[%clk 0:03:02.5]} 4.
Nf3 {[%clk 0:02:59.1]} 4... c5 {[%clk 0:03:03.8]} 5. c3 {[%clk 0:02:59.2]} 5...
Nc6 {[%clk 0:03:04.9]} 6. Nbd2 {[%clk 0:02:59.2]} 6... Bd6 {[%clk 0:03:05.9]} 7.
Bg3 {[%clk 0:02:58.8]} 7... O-O {[%clk 0:03:06.8]} 8. Bd3 {[%clk 0:02:56.6]}
8... b6 {[%clk 0:03:07.8]} 9. Ne5 {[%clk 0:02:50.6]} 9... Bb7 {[%clk 0:03:08.9]}
10. f4 {[%clk 0:02:50.6]} 10... Ne7 {[%clk 0:03:10.1]} 11. Bh4 {[%clk
0:02:50.5]} 11... Nf5 {[%clk 0:03:10.1]} 12. Bxf5 {[%clk 0:02:42.4]} 12... exf5
{[%clk 0:03:12]} 13. O-O {[%clk 0:02:34.2]} 13... Be7 {[%clk 0:03:10.3]} 14.
Bxf6 {[%clk 0:02:19.6]} 14... Bxf6 {[%clk 0:03:08.6]} 15. Qb3 {[%clk 0:02:19.2]}
15... Qc7 {[%clk 0:02:58.2]} 16. Qc2 {[%clk 0:02:09.9]} 16... g6 {[%clk
0:02:55.8]} 17. Rae1 {[%clk 0:02:07.5]} 17... Rfe8 {[%clk 0:02:53.7]} 18. h3
{[%clk 0:02:07.9]} 18... Bg7 {[%clk 0:02:52.6]} 19. Qd3 {[%clk 0:01:58.4]} 19...
a5 {[%clk 0:02:45.3]} 20. Qb1 {[%clk 0:01:54.1]} 20... Re7 {[%clk 0:02:40.6]}
21. g4 {[%clk 0:01:52.8]} 21... fxg4 {[%clk 0:02:36.6]} 22. hxg4 {[%clk
0:01:53.4]} 22... f6 {[%clk 0:02:37]} 23. Nef3 {[%clk 0:01:52.4]} 23... Rae8
{[%clk 0:02:32]} 24. Kf2 {[%clk 0:01:52.7]} 24... Ba6 {[%clk 0:02:12.2]} 25. Rg1
{[%clk 0:01:37.6]} 25... Qd7 {[%clk 0:02:08.6]} 26. f5 {[%clk 0:01:30.6]} 26...
gxf5 {[%clk 0:01:54.8]} 27. Qxf5 {[%clk 0:01:12.6]} 27... Qxf5 {[%clk
0:01:45.5]} 28. gxf5 {[%clk 0:01:14.5]} 28... Bd3 {[%clk 0:01:44.2]} 29. Nh4
{[%clk 0:01:04.1]} 29... cxd4 {[%clk 0:01:38.1]} 30. cxd4 {[%clk 0:00:55.5]}
30... Rc8 {[%clk 0:01:39.3]} 31. Rc1 {[%clk 0:00:53.2]} 31... Rec7 {[%clk
0:01:37.9]} 32. Nb3 {[%clk 0:00:42.7]} 32... Rc2+ {[%clk 0:01:38.3]} 33. Kg3
{[%clk 0:00:41]} 33... a4 {[%clk 0:01:37.2]} 34. Rxc2 {[%clk 0:00:38.7]} 34...
Rxc2 {[%clk 0:01:39.1]} 35. Nc1 {[%clk 0:00:39.4]} 35... Be4 {[%clk 0:01:39.8]}
36. b3 {[%clk 0:00:34.3]} 36... Bf8 {[%clk 0:01:32.9]} 37. bxa4 {[%clk
0:00:31.1]} 37... Bd6+ {[%clk 0:01:31.7]} 38. Kh3+ {[%clk 0:00:27.7]} 38... Kf7
{[%clk 0:01:31.8]} 39. Nb3 {[%clk 0:00:26.5]} 39... h5 {[%clk 0:01:31]} 40. Ng2
{[%clk 0:00:23.8]} 40... Rxa2 {[%clk 0:01:20.8]} 41. a5 {[%clk 0:00:19.9]} 41...
bxa5 {[%clk 0:01:18.6]} 42. Nf4 {[%clk 0:00:19.4]} 42... Bxf5+ {[%clk
0:01:14.2]} 43. Kh4 {[%clk 0:00:17.9]} 43... Bg4 {[%clk 0:01:05.7]} 44. Nxh5
{[%clk 0:00:14.9]} 44... Bxh5 {[%clk 0:00:26.6]} 45. Kxh5 {[%clk 0:00:16.8]}
45... a4 {[%clk 0:00:24.5]} 46. Nc5 {[%clk 0:00:16.4]} 46... a3 {[%clk
0:00:20.3]} 47. Kg4 {[%clk 0:00:12.9]} 47... Rc2 {[%clk 0:00:13.7]} 48. Ra1
{[%clk 0:00:11.8]} 48... a2 {[%clk 0:00:10.8]} 49. Kf3 {[%clk 0:00:12]} 49...
Bxc5 {[%clk 0:00:09.6]} 50. dxc5 {[%clk 0:00:11.8]} 50... Ke6 {[%clk 0:00:10]}
51. e4 {[%clk 0:00:12.9]} 51... d4 {[%clk 0:00:05.6]} 52. c6 {[%clk 0:00:08.8]}
52... Ke5 {[%clk 0:00:06.9]} 53. c7 {[%clk 0:00:08.4]} 53... Rc3+ {[%clk
0:00:07.9]} 54. Ke2 {[%clk 0:00:09.5]} 54... Rxc7 {[%clk 0:00:08.1]} 55. Rxa2
{[%clk 0:00:10.6]} 55... Kxe4 {[%clk 0:00:09.4]} 56. Ra8 {[%clk 0:00:10.4]}
56... Rc2+ {[%clk 0:00:08.6]} 57. Kd1 {[%clk 0:00:11.5]} 57... Rh2 {[%clk
0:00:08.7]} 58. Rf8 {[%clk 0:00:11.7]} 58... f5 {[%clk 0:00:07.2]} 59. Ke1
{[%clk 0:00:10.5]} 59... f4 {[%clk 0:00:07.5]} 60. Re8+ {[%clk 0:00:11.2]} 60...
Kf3 {[%clk 0:00:08.2]} 61. Rd8 {[%clk 0:00:11.7]} 61... Ke3 {[%clk 0:00:07.6]}
62. Re8+ {[%clk 0:00:11.8]} 62... Kd3 {[%clk 0:00:09]} 63. Rf8 {[%clk
0:00:12.4]} 63... Re2+ {[%clk 0:00:04.5]} 64. Kf1 {[%clk 0:00:10.2]} 64... Re4
{[%clk 0:00:05.7]} 65. Kf2 {[%clk 0:00:10.9]} 65... Kc2 {[%clk 0:00:05.3]} 66.
Rc8+ {[%clk 0:00:07]} 66... Kd2 {[%clk 0:00:06.3]} 67. Kf3 {[%clk 0:00:07.9]}
67... Re7 {[%clk 0:00:06]} 68. Ra8 {[%clk 0:00:03.8]} 68... Rc7 {[%clk
0:00:06.6]} 69. Kxf4 {[%clk 0:00:02.8]} 69... d3 {[%clk 0:00:06.5]} 70. Ra2+
{[%clk 0:00:02.2]} 70... Rc2 {[%clk 0:00:07.3]} 71. Ra1 {[%clk 0:00:02.9]} 71...
Ke2 {[%clk 0:00:08.2]} 0-1

[Event "*** Titled Tuesday Blitz"]
[Site "Chess.com"]
[Date "2020.02.04"]
[Round "8"]
[White "Yoshkinkot"]
[Black "Leonid_Starozhilov"]
[Result "1-0"]
[WhiteElo "2590"]
[BlackElo "2681"]
[TimeControl "180+2"]
[EndTime "11:00:47 PST"]
[Termination "Yoshkinkot won on time"]

1. e4 {[%clk 0:03:01.9]} 1... g6 {[%clk 0:03:01.6]} 2. d4 {[%clk 0:03:02.1]}
2... Bg7 {[%clk 0:03:03.5]} 3. Nc3 {[%clk 0:03:02.3]} 3... d6 {[%clk 0:03:05]}
4. f4 {[%clk 0:03:03.3]} 4... Nf6 {[%clk 0:03:06.4]} 5. Nf3 {[%clk 0:03:04.3]}
5... O-O {[%clk 0:03:07.9]} 6. Be3 {[%clk 0:03:05.4]} 6... c6 {[%clk 0:03:04.4]}
7. Qd2 {[%clk 0:03:05.2]} 7... b5 {[%clk 0:03:05.3]} 8. a3 {[%clk 0:03:02.8]}
8... a5 {[%clk 0:02:55.7]} 9. e5 {[%clk 0:03:02.4]} 9... Ne8 {[%clk 0:02:48]}
10. Be2 {[%clk 0:02:54.4]} 10... Ba6 {[%clk 0:02:40.2]} 11. O-O {[%clk
0:02:47.9]} 11... b4 {[%clk 0:02:39.4]} 12. axb4 {[%clk 0:02:48.6]} 12... axb4
{[%clk 0:02:34.5]} 13. Ne4 {[%clk 0:02:49.6]} 13... Bxe2 {[%clk 0:02:27.4]} 14.
Qxe2 {[%clk 0:02:06.6]} 14... Nd7 {[%clk 0:02:13]} 15. Qd2 {[%clk 0:01:51.4]}
15... Rb8 {[%clk 0:01:46.5]} 16. h4 {[%clk 0:00:27.1]} 16... Nb6 {[%clk
0:01:38.5]} 17. h5 {[%clk 0:00:21.6]} 17... Nd5 {[%clk 0:01:39.6]} 18. hxg6
{[%clk 0:00:11.2]} 18... hxg6 {[%clk 0:01:39.5]} 19. f5 {[%clk 0:00:10.1]} 19...
gxf5 {[%clk 0:00:52.6]} 20. Ng3 {[%clk 0:00:04.4]} 20... e6 {[%clk 0:00:45.4]}
21. Bh6 {[%clk 0:00:05.5]} 21... f6 {[%clk 0:00:43.9]} 22. Nh5 {[%clk
0:00:05.6]} 22... Qd7 {[%clk 0:00:42.3]} 23. exd6 {[%clk 0:00:04.4]} 23... Bxh6
{[%clk 0:00:32.5]} 24. Qxh6 {[%clk 0:00:04.8]} 24... Qh7 {[%clk 0:00:34.2]} 25.
Qxh7+ {[%clk 0:00:05.2]} 25... Kxh7 {[%clk 0:00:36.1]} 26. d7 {[%clk 0:00:04]}
26... Nec7 {[%clk 0:00:31.9]} 27. Ra7 {[%clk 0:00:05.5]} 27... Rbd8 {[%clk
0:00:28.6]} 28. Rfa1 {[%clk 0:00:04.9]} 28... Kg6 {[%clk 0:00:29.6]} 29. Ng3
{[%clk 0:00:05.3]} 29... Rxd7 {[%clk 0:00:29.3]} 30. Ne2 {[%clk 0:00:06.4]}
30... Rfd8 {[%clk 0:00:28.6]} 31. Rb7 {[%clk 0:00:07.3]} 31... Nb5 {[%clk
0:00:29.3]} 32. Rxd7 {[%clk 0:00:08]} 32... Rxd7 {[%clk 0:00:31.2]} 33. Ra6
{[%clk 0:00:09]} 33... Ne7 {[%clk 0:00:26.7]} 34. c3 {[%clk 0:00:09.5]} 34...
bxc3 {[%clk 0:00:22.6]} 35. bxc3 {[%clk 0:00:11.4]} 35... Nd6 {[%clk 0:00:21.7]}
36. Nf4+ {[%clk 0:00:10.7]} 36... Kf7 {[%clk 0:00:23.2]} 37. Nd3 {[%clk
0:00:11.5]} 37... Ne4 {[%clk 0:00:19.9]} 38. Ra3 {[%clk 0:00:09.3]} 38... Rb7
{[%clk 0:00:19.5]} 39. Nb4 {[%clk 0:00:07.9]} 39... Nxc3 {[%clk 0:00:15.1]} 40.
Nxc6 {[%clk 0:00:07]} 40... Ne2+ {[%clk 0:00:11.7]} 41. Kf2 {[%clk 0:00:07.7]}
41... Nxc6 {[%clk 0:00:13.6]} 42. Kxe2 {[%clk 0:00:08.2]} 42... Rb2+ {[%clk
0:00:15.2]} 43. Kf1 {[%clk 0:00:09.5]} 43... Ke7 {[%clk 0:00:13]} 44. Ra6 {[%clk
0:00:10.5]} 44... Rc2 {[%clk 0:00:13.4]} 45. Ra8 {[%clk 0:00:10.1]} 45... Nb4
{[%clk 0:00:13.8]} 46. Ra7+ {[%clk 0:00:11]} 46... Kd6 {[%clk 0:00:15]} 47. Rf7
{[%clk 0:00:12.6]} 47... Nd5 {[%clk 0:00:11.9]} 48. Kg1 {[%clk 0:00:14]} 48...
f4 {[%clk 0:00:12.7]} 49. Rg7 {[%clk 0:00:14.8]} 49... Ne3 {[%clk 0:00:12.3]}
50. Kh2 {[%clk 0:00:15.5]} 50... Rc1 {[%clk 0:00:10.4]} 51. Nd2 {[%clk 0:00:15]}
51... f5 {[%clk 0:00:08.6]} 52. Nf3 {[%clk 0:00:15.4]} 52... Rc2 {[%clk
0:00:08]} 53. Ne5 {[%clk 0:00:15.7]} 53... Kd5 {[%clk 0:00:07.3]} 54. Nf3 {[%clk
0:00:14.4]} 54... Ng4+ {[%clk 0:00:06.2]} 55. Kh3 {[%clk 0:00:14.5]} 55... Ne3
{[%clk 0:00:06.8]} 56. Kh2 {[%clk 0:00:15.4]} 56... Nf1+ {[%clk 0:00:05.8]} 57.
Kh3 {[%clk 0:00:16.5]} 57... Nd2 {[%clk 0:00:06.6]} 58. Rd7+ {[%clk 0:00:16.9]}
58... Kc6 {[%clk 0:00:06.1]} 59. Ne5+ {[%clk 0:00:13.9]} 59... Kb5 {[%clk
0:00:07.6]} 60. Rb7+ {[%clk 0:00:15]} 60... Ka6 {[%clk 0:00:08.6]} 61. Re7
{[%clk 0:00:15.9]} 61... Ne4 {[%clk 0:00:10]} 62. Rxe6+ {[%clk 0:00:17.1]} 62...
Kb5 {[%clk 0:00:10.3]} 63. Nf3 {[%clk 0:00:17.7]} 63... Rc1 {[%clk 0:00:09.1]}
64. Kh2 {[%clk 0:00:15.7]} 64... Rc2 {[%clk 0:00:07.7]} 65. Re5+ {[%clk
0:00:16.4]} 65... Kc6 {[%clk 0:00:08]} 66. Rxf5 {[%clk 0:00:17.8]} 66... Ng3
{[%clk 0:00:08.5]} 67. Rxf4 {[%clk 0:00:17.8]} 67... Ne2 {[%clk 0:00:10]} 68.
Rf5 {[%clk 0:00:16.5]} 68... Kd7 {[%clk 0:00:09.8]} 69. Kh3 {[%clk 0:00:13.1]}
69... Ra2 {[%clk 0:00:10.2]} 70. g4 {[%clk 0:00:12.8]} 70... Ra3 {[%clk
0:00:11.2]} 71. Kh4 {[%clk 0:00:13.4]} 71... Ra8 {[%clk 0:00:11.2]} 72. g5
{[%clk 0:00:13.7]} 72... Nc3 {[%clk 0:00:09.8]} 73. Kg4 {[%clk 0:00:13.2]} 73...
Ne4 {[%clk 0:00:10.3]} 74. Rf4 {[%clk 0:00:13.4]} 74... Nf2+ {[%clk 0:00:11.2]}
75. Kg3 {[%clk 0:00:13.7]} 75... Nd3 {[%clk 0:00:12]} 76. Rf6 {[%clk 0:00:13.8]}
76... Ke7 {[%clk 0:00:12.5]} 77. Kg4 {[%clk 0:00:14]} 77... Nf2+ {[%clk
0:00:12.2]} 78. Kf5 {[%clk 0:00:15.2]} 78... Nd3 {[%clk 0:00:12]} 79. Ne5 {[%clk
0:00:16]} 79... Nb4 {[%clk 0:00:11.2]} 80. Rf7+ {[%clk 0:00:17]} 80... Ke8
{[%clk 0:00:12.8]} 81. g6 {[%clk 0:00:17.6]} 81... Nd5 {[%clk 0:00:13.1]} 82.
Rb7 {[%clk 0:00:17.9]} 82... Ne7+ {[%clk 0:00:13.9]} 83. Kg5 {[%clk 0:00:18.6]}
83... Ra1 {[%clk 0:00:14.1]} 84. Rb8+ {[%clk 0:00:18.1]} 1-0

[Event "*** Titled Tuesday Blitz"]
[Site "Chess.com"]
[Date "2020.02.04"]
[Round "9"]
[White "BeanScreen"]
[Black "WelshTiger"]
[Result "1-0"]
[WhiteElo "2566"]
[BlackElo "2314"]
[TimeControl "180+2"]
[EndTime "11:06:21 PST"]
[Termination "BeanScreen won by resignation"]

1. e4 {[%clk 0:03:01.6]} 1... c5 {[%clk 0:03:00.6]} 2. Nf3 {[%clk 0:03:02.8]}
2... Nc6 {[%clk 0:03:01.2]} 3. d4 {[%clk 0:03:03.7]} 3... cxd4 {[%clk
0:03:03.1]} 4. Nxd4 {[%clk 0:03:05.6]} 4... Nf6 {[%clk 0:03:04.6]} 5. Nc3 {[%clk
0:03:06.9]} 5... d6 {[%clk 0:03:06.2]} 6. Bg5 {[%clk 0:03:07.6]} 6... Bd7 {[%clk
0:03:06.7]} 7. Qd2 {[%clk 0:03:06]} 7... Rc8 {[%clk 0:03:07.5]} 8. Bxf6 {[%clk
0:03:06.2]} 8... gxf6 {[%clk 0:03:08.3]} 9. O-O-O {[%clk 0:03:08]} 9... Nxd4
{[%clk 0:03:06.5]} 10. Qxd4 {[%clk 0:03:09.1]} 10... Bh6+ {[%clk 0:03:03.8]} 11.
Kb1 {[%clk 0:03:10.3]} 11... Bf4 {[%clk 0:02:57.7]} 12. Nd5 {[%clk 0:03:06.8]}
12... Be5 {[%clk 0:02:57.3]} 13. Qxa7 {[%clk 0:02:58.1]} 13... Ra8 {[%clk
0:01:51.8]} 14. Qxa8 {[%clk 0:02:58.2]} 14... Qxa8 {[%clk 0:01:47.1]} 15. Nc7+
{[%clk 0:02:59.5]} 15... Kf8 {[%clk 0:01:49]} 16. Nxa8 {[%clk 0:03:01.4]} 16...
Kg7 {[%clk 0:01:50.3]} 17. Nb6 {[%clk 0:03:02.5]} 1-0

[Event "*** Titled Tuesday Blitz"]
[Site "Chess.com"]
[Date "2020.02.04"]
[Round "9"]
[White "Mikhail_Golubev"]
[Black "Kimster98"]
[Result "1/2-1/2"]
[WhiteElo "2554"]
[BlackElo "2699"]
[TimeControl "180+2"]
[EndTime "11:07:28 PST"]
[Termination "Game drawn by repetition"]

1. e4 {[%clk 0:03:01.9]} 1... e5 {[%clk 0:02:59.7]} 2. Nf3 {[%clk 0:03:02]} 2...
Nf6 {[%clk 0:03:01]} 3. Nc3 {[%clk 0:03:02.5]} 3... Nc6 {[%clk 0:02:54.7]} 4. d4
{[%clk 0:03:02.4]} 4... exd4 {[%clk 0:02:56.6]} 5. Nxd4 {[%clk 0:03:03.6]} 5...
Bb4 {[%clk 0:02:58]} 6. Nxc6 {[%clk 0:03:04.5]} 6... bxc6 {[%clk 0:02:59.9]} 7.
Bd3 {[%clk 0:03:05.5]} 7... O-O {[%clk 0:03:00.9]} 8. O-O {[%clk 0:03:05.9]}
8... d5 {[%clk 0:03:02.4]} 9. Bd2 {[%clk 0:03:07.2]} 9... Bxc3 {[%clk
0:02:57.9]} 10. Bxc3 {[%clk 0:03:05.1]} 10... dxe4 {[%clk 0:02:57.8]} 11. Bxf6
{[%clk 0:03:04.2]} 11... Qxf6 {[%clk 0:02:59.7]} 12. Bxe4 {[%clk 0:03:05.1]}
12... Qxb2 {[%clk 0:03:00.1]} 13. Bxc6 {[%clk 0:02:54.7]} 13... Rb8 {[%clk
0:03:00.4]} 14. Rb1 {[%clk 0:02:50.2]} 14... Qxb1 {[%clk 0:03:00.7]} 15. Qxb1
{[%clk 0:02:51.3]} 15... Rxb1 {[%clk 0:03:02.6]} 16. Rxb1 {[%clk 0:02:52.2]}
16... Rd8 {[%clk 0:03:04.2]} 17. h3 {[%clk 0:02:44.5]} 17... Kf8 {[%clk
0:02:56.8]} 18. Rb4 {[%clk 0:02:29.4]} 18... Ke7 {[%clk 0:02:49.8]} 19. Re4+
{[%clk 0:02:12]} 19... Kd6 {[%clk 0:02:34.8]} 20. Rd4+ {[%clk 0:02:11.5]} 20...
Ke7 {[%clk 0:02:35]} 21. Re4+ {[%clk 0:02:09.4]} 21... Kd6 {[%clk 0:02:01]} 22.
Rd4+ {[%clk 0:02:09.9]} 22... Ke7 {[%clk 0:02:01.2]} 23. Re4+ {[%clk 0:02:11.1]}
1/2-1/2

[Event "*** Titled Tuesday Blitz"]
[Site "Chess.com"]
[Date "2020.02.04"]
[Round "9"]
[White "bazar-wokzal"]
[Black "przemekpiotrowski"]
[Result "1-0"]
[WhiteElo "2549"]
[BlackElo "2374"]
[TimeControl "180+2"]
[EndTime "11:08:02 PST"]
[Termination "bazar-wokzal won by resignation"]

1. e4 {[%clk 0:03:01.9]} 1... c5 {[%clk 0:02:56.8]} 2. c3 {[%clk 0:03:02.6]}
2... Nf6 {[%clk 0:02:56.8]} 3. e5 {[%clk 0:03:03.6]} 3... Nd5 {[%clk 0:02:58.5]}
4. Bc4 {[%clk 0:03:04.6]} 4... Nb6 {[%clk 0:02:57.2]} 5. Bb3 {[%clk 0:03:05.7]}
5... d5 {[%clk 0:02:54.1]} 6. exd6 {[%clk 0:03:06]} 6... Qxd6 {[%clk 0:02:55.3]}
7. d4 {[%clk 0:03:07.1]} 7... cxd4 {[%clk 0:02:55.9]} 8. Nf3 {[%clk 0:03:08.1]}
8... Nc6 {[%clk 0:02:57.1]} 9. Na3 {[%clk 0:03:06.4]} 9... dxc3 {[%clk
0:02:51.1]} 10. Qxd6 {[%clk 0:03:05.3]} 10... exd6 {[%clk 0:02:52.6]} 11. Nb5
{[%clk 0:03:06.9]} 11... Bg4 {[%clk 0:02:41.4]} 12. Nc7+ {[%clk 0:03:04.1]}
12... Kd7 {[%clk 0:02:36.2]} 13. Nxa8 {[%clk 0:03:04.4]} 13... Nxa8 {[%clk
0:02:38.1]} 14. Ng5 {[%clk 0:02:53.1]} 14... cxb2 {[%clk 0:02:28.8]} 15. Bxb2
{[%clk 0:02:53.4]} 15... Be6 {[%clk 0:02:30.5]} 16. Nxf7 {[%clk 0:02:53.1]}
16... Bxf7 {[%clk 0:02:26.9]} 17. Bxf7 {[%clk 0:02:53.2]} 17... Nc7 {[%clk
0:02:26.3]} 18. O-O {[%clk 0:02:52.6]} 18... Ne5 {[%clk 0:02:24]} 19. Bb3 {[%clk
0:02:48.4]} 19... Be7 {[%clk 0:02:20.9]} 20. f4 {[%clk 0:02:46.4]} 20... Nd3
{[%clk 0:02:02.1]} 21. Bxg7 {[%clk 0:02:46]} 21... Re8 {[%clk 0:02:01.3]} 22.
Bf7 {[%clk 0:02:43.1]} 22... Rd8 {[%clk 0:01:58.8]} 23. Rad1 {[%clk 0:02:43.6]}
23... Nc5 {[%clk 0:01:59.8]} 24. f5 {[%clk 0:02:44.3]} 24... Ne8 {[%clk
0:01:55.2]} 25. Bd4 {[%clk 0:02:42.4]} 25... Kc6 {[%clk 0:01:50.1]} 26. f6
{[%clk 0:02:42.7]} 26... Bf8 {[%clk 0:01:51.4]} 27. Bxc5 {[%clk 0:02:38.3]}
27... Kxc5 {[%clk 0:01:50.5]} 28. Rf5+ {[%clk 0:02:32.5]} 28... Kb6 {[%clk
0:01:48.8]} 29. Bd5 {[%clk 0:02:30.1]} 29... Nc7 {[%clk 0:01:48.4]} 30. Rb1+
{[%clk 0:02:26.7]} 1-0